Cogmind - Beta 16.1 @@@ ROGUE MODE // 2026.02.25 @ 22:51:44 // AFD2020/Player2 Player: FAQ Result: Core destroyed Performance ------------- Evolutions (4) 2000 Regions Visited (16) 3200 Robots Destroyed (111) 555 Value Destroyed (5369) 5369 Prototype IDs (27) 540 Alien Tech Used (0) 0 Bonus (3999) 3999 TOTAL SCORE: 15663 Bonus ------- High Alert Combat Kills 717 Follower Combat Kills 2151 Entered Garrisons 400 Used RIF Installer 1000 Entered DSFs 500 Aligned with FarCom 300 Met Data Miner 300 Friendly Fire -1369 Cogmind --------- Core Integrity 0/850 Matter 257/300 Energy 180/180 System Corruption 1% Temperature Cool (0) Movement Flying (32) Location -6/DSF Parts ------- > --- POWER (1) -------- Light Particle Reactor > --- PROPULSION (6) --- Improved VTOL Module Improved VTOL Module Impulse Thruster Array > --- UTILITY (6) ------ Medium Storage Unit Advanced Launcher Guidance Computer Target Analyzer Hacking Suite Relay Coupler [NC] (14) > --- WEAPON (2) ------- (None) > --- INVENTORY (10) --- Advanced Phase Shifter Hardlight Generator Hacking Suite Relay Coupler [NC] (27) Relay Coupler [Grunt] (31) Sensor Drone Bay (18/20) Heavy Assault Rifle Advanced Remote Datajack Power Sword Power Sword Peak State ------------ > --- POWER ------------ Light Particle Reactor > --- PROPULSION ------- Improved VTOL Module Improved VTOL Module Improved VTOL Module Q-thruster Impulse Thruster Array > --- UTILITY ---------- Medium Storage Unit Target Analyzer Hacking Suite System Shield Relay Coupler [NC] Relay Coupler [Sentry] > --- WEAPON ----------- Advanced Remote Datajack Power Sword > --- INVENTORY -------- Light Particle Reactor Advanced Launcher Guidance Computer Advanced Phase Shifter Hardlight Generator Hacking Suite Relay Coupler [NC] Relay Coupler [Grunt] Sensor Drone Bay Scatter Rocket Array Remote Datajack [Rating: 77] Favorites ----------- Power Light Nuclear Core Engine Ion Engine Power Core Light Nuclear Core Reactor Light Particle Reactor Propulsion Improved VTOL Module Treads Armored Treads Leg Aluminum Leg Flight Unit Improved VTOL Module Utility Hacking Suite Device Seismic Detector Storage Medium Storage Unit Processor Target Analyzer Hackware Hacking Suite Protection Hardened Light Armor Plating Weapon Light Cannon Energy Gun Lightning Gun Ballistic Gun Heavy Assault Rifle Ballistic Cannon Light Cannon Launcher Improved Grenade Launcher Special Weapon Remote Datajack Slashing Weapon Power Sword Build | -11 -10 -10 -10 -9 -8 -8 -8 -7 -7 -7 -7 -6 -6 -6 -6 -6 ------- Run | Yrd Mat Min Exi Min Mat Gar Mat Fac Low Low Dat Pro Fac Gar Fac DSF Slots Evolved 8 | . . . . . 4 . . 2 . . . . 2 . . . Power . | . . . . . . . . . . . . . . . . . Propulsion 4 | . . . . . 1 . . 2 . . . . 1 . . . Utility 4 | . . . . . 3 . . . . . . . 1 . . . Weapon . | . . . . . . . . . . . . . . . . . Parts Attached 85 | 6 9 . 1 . 10 7 7 12 1 1 . 5 10 10 . 6 Power 16 | 1 2 . . . 1 2 . 4 . . . 1 1 3 . 1 Engine 6 | 1 1 . . . 1 . . 3 . . . . . . . . Core 7 | . 1 . . . . 2 . 1 . . . 1 1 1 . . Reactor 3 | . . . . . . . . . . . . . . 2 . 1 Propulsion 26 | 2 3 . . . 4 1 3 3 . 1 . 2 5 2 . . Treads 8 | . 3 . . . 4 1 . . . . . . . . . . Leg 2 | 2 . . . . . . . . . . . . . . . . Wheel . | . . . . . . . . . . . . . . . . . Hover . | . . . . . . . . . . . . . . . . . Flight 16 | . . . . . . . 3 3 . 1 . 2 5 2 . . Utility 20 | 2 1 . . . 3 3 4 1 . . . 1 3 . . 2 Device 6 | 1 . . . . 1 1 . . . . . 1 1 . . 1 Storage 3 | 1 1 . . . . . 1 . . . . . . . . . Processor 2 | . . . . . . . . 1 . . . . . . . 1 Hackware 7 | . . . . . 2 . 3 . . . . . 2 . . . Protection 2 | . . . . . . 2 . . . . . . . . . . Artifact . | . . . . . . . . . . . . . . . . . Weapon 23 | 1 3 . 1 . 2 1 . 4 1 . . 1 1 5 . 3 Energy Gun 9 | 1 1 . . . . . . 3 . . . . 1 1 . 2 Energy Cannon . | . . . . . . . . . . . . . . . . . Ballistic Gun 1 | . . . . . . . . . . . . . . . . 1 Ballistic Cannon 6 | . 2 . . . 2 . . 1 1 . . . . . . . Launcher 2 | . . . . . . 1 . . . . . . . 1 . . Special Weapon 3 | . . . 1 . . . . . . . . 1 . 1 . . Impact Weapon . | . . . . . . . . . . . . . . . . . Slashing Weapon 2 | . . . . . . . . . . . . . . 2 . . Piercing Weapon . | . . . . . . . . . . . . . . . . . Special Melee Weapon . | . . . . . . . . . . . . . . . . . Unidentified Prototypes 7 | . . . 1 . . 1 1 1 . . . . 2 1 . . Parts Lost 16 | . 1 . . . 1 1 . 1 1 3 . 1 . 2 . 5 Power 6 | . 1 . . . . 1 . 1 . 1 . . . 1 . 1 Propulsion 6 | . . . . . 1 . . . . 1 . 1 . 1 . 2 Utility 1 | . . . . . . . . . . . . . . . . 1 Weapon 3 | . . . . . . . . . 1 1 . . . . . 1 Highest Loss Streak 3 | . 1 . . . 1 1 . 1 1 2 . 1 . 2 . 3 To Critical Strikes . | . . . . . . . . . . . . . . . . . Average Backups 11 | 5 9 14 13 14 11 14 12 9 9 8 9 9 9 9 10 10 Power . | . 1 2 2 2 1 . . . . . . . . . 1 . Propulsion 2 | 2 3 7 6 6 4 3 1 . 1 1 1 . 1 . . . Utility 5 | 1 2 3 4 4 2 5 6 6 7 6 7 6 5 6 7 6 Weapon 2 | 1 1 1 . . 1 3 2 3 1 1 1 1 2 2 1 2 Tool/Special . | . . . . . . . . . . . . . . . . . Unused Backups 29 | 1 8 . 2 . 1 5 2 1 . . . . 1 4 . 4 Power 3 | . 2 . . . 1 . . . . . . . . . . . Propulsion 11 | 1 3 . 1 . . 4 1 . . . . . . 1 . . Utility 12 | . 2 . 1 . . 1 . 1 . . . . . 3 . 4 Weapon 2 | . 1 . . . . . . . . . . . 1 . . . Tool/Special 1 | . . . . . . . 1 . . . . . . . . . Average Slot Usage (%) 95 | . 98 100 100 100 96 97 93 94 99 90 84 91 93 98 93 73 Engine 3 | . 5 14 14 14 9 3 . 3 7 . . . . . . . Core 4 | . 8 . . . . 4 9 2 . . . 5 5 5 . . Treads 12 | . 23 28 28 28 27 26 12 . . . . . . . . . Flight 19 | . . . . . . . 13 37 38 37 38 38 38 38 33 25 Device 6 | . 14 14 14 14 17 8 . . . 3 . 3 1 . . . Storage 9 | . 14 14 14 14 9 9 9 7 7 7 7 7 6 6 6 6 Processor 2 | . . . . . . . . 2 7 7 7 7 6 6 6 11 Hackware 15 | . . . . . 17 17 25 27 23 17 15 15 20 26 26 19 Protection 2 | . . . . . . 9 9 . . . . . . . . . Energy Gun 2 | . 1 . . . . . . 10 9 . . . 5 . . . Ballistic Cannon 12 | . 25 28 27 28 15 17 14 . 4 14 15 8 . . . . Slashing Weapon 1 | . . . . . . . . . . . . . . 11 13 1 Peak Build Rating 77 | 6 10 9 18 10 30 38 32 47 43 43 35 46 64 77 74 77 Average Rating 32 | 4 8 8 9 10 20 31 28 39 42 39 35 39 55 59 74 59 On Entrance 30 | . 6 8 9 10 10 30 26 28 43 43 35 35 39 56 74 74 Avg Prop Armor Cover (%) . | . . . . . . . . . . . . . . . . . Naked Turns . | . . . . . . . . . . . . . . . . . Heaviest Build 54 | 10 32 32 32 32 40 54 41 21 24 20 20 34 37 34 30 32 Greatest Support 60 | 20 40 40 40 40 60 60 60 26 26 26 26 26 32 39 39 39 Greatest Overweight (x) 10 | 1 5 . . . . 10 6 1 . . . 1 1 1 . 1 Average Overweight (x) . | . . . . . . . . . . . . . . . . . Largest Inventory Capacity 15 | 8 15 15 15 15 15 15 15 10 10 10 10 10 10 10 10 10 Average Capacity 12 | 7 13 15 15 15 15 15 12 10 10 10 10 10 10 10 10 10 Most Carried 15 | 8 15 15 15 14 15 15 15 10 10 10 9 10 10 10 10 10 Average Carried 11 | 5 9 14 13 14 11 14 12 9 9 8 9 9 9 9 10 9 Final Capacity 15 | 8 15 15 15 15 15 15 10 10 10 10 10 10 10 10 10 10 Final Carried 15 | 8 15 14 14 14 15 15 10 10 10 9 9 10 10 10 10 10 Class Distribution -------------------- 32% | Mutant 25% | Hacker-Mutant 19% | Hacker-Sprinter 7% | Bothacker-Sprinter 6% | Scavenger-Sprinter 4% | Sprinter Dominant Class ---------------- Mutant | -10/Materials Mutant | -10/Mines Mutant | -10/Exiles Mutant | -9/Mines Hacker-Mutant | -8/Materials Hacker-Mutant | -8/Garrison Hacker-Mutant | -8/Materials Hacker-Sprinter | -7/Factory Scavenger-Sprinter | -7/Lower Caves Mutant | -7/Lower Caves Sprinter | -7/Data Miner Scavenger-Sprinter | -6/Proximity Caves Hacker-Sprinter | -6/Factory Bothacker-Sprinter | -6/Garrison Bothacker-Sprinter | -6/Factory Hacker-Sprinter | -6/DSF Resources | -11 -10 -10 -10 -9 -8 -8 -8 -7 -7 -7 -7 -6 -6 -6 -6 -6 ----------- Run | Yrd Mat Min Exi Min Mat Gar Mat Fac Low Low Dat Pro Fac Gar Fac DSF Matter Collected 3907 | 260 483 66 . . 223 881 262 674 87 129 . 191 174 353 . 124 Remotely . | . . . . . . . . . . . . . . . . . Salvage Created 3367 | 225 576 59 57 . 311 645 126 862 14 63 . 79 . 350 . . Parts 180 | 15 34 2 7 . 14 42 11 37 2 4 . . . 12 . . Haulers Intercepted 6 | . 1 . . . 1 . 1 3 . . . . . . . . Recyclers Shooed 2 | . . . . . . . 2 . . . . . . . . . Parts Field Recycled . | . . . . . . . . . . . . . . . . . Retrieved Matter . | . . . . . . . . . . . . . . . . . Parts Self-Destructed 13 | . . . . . . . . . 5 8 . . . . . . Prevented . | . . . . . . . . . . . . . . . . . Parts Restored . | . . . . . . . . . . . . . . . . . Kills | -11 -10 -10 -10 -9 -8 -8 -8 -7 -7 -7 -7 -6 -6 -6 -6 -6 ------- Run | Yrd Mat Min Exi Min Mat Gar Mat Fac Low Low Dat Pro Fac Gar Fac DSF Combat Hostiles Destroyed 81 | . 17 2 2 . 4 25 1 12 3 2 . 4 . 9 . . Melee 4 | . . . . . . . . . . . . . . 4 . . Guns 6 | . 3 . . . . . . 2 . . . . . 1 . . Cannons 42 | . 13 2 2 . 4 13 1 1 . 2 . 4 . . . . AOE 29 | . 1 . . . . 12 . 9 3 . . . . 4 . . Classes Destroyed 18 | 3 5 . . . 1 2 1 4 . . . 1 . 1 . . Worker 6 | 2 1 . . . . . . 3 . . . . . . . . Builder 1 | . . . . . . . . 1 . . . . . . . . Tunneler 4 | 4 . . . . . . . . . . . . . . . . Hauler 6 | . 1 . . . 1 . 1 3 . . . . . . . . Recycler 3 | 1 . . . . 1 . 1 . . . . . . . . . Mechanic 1 | . . . . . . . . 1 . . . . . . . . Operator 3 | . 1 . . . . . 1 1 . . . . . . . . Drone 2 | . . . . . . . . . . . . 2 . . . . Watcher 6 | . 2 . . . . . . 3 . . . . . 1 . . Swarmer 16 | . 4 . . . . 6 . . 3 1 . . . 2 . . Grunt 41 | . 13 2 2 . 1 11 . 8 . 1 . . . 3 . . Brawler 3 | . . . . . . . . 2 . . . 1 . . . . Duelist 1 | . . . . . . . 1 . . . . . . . . . Protector 1 | . . . . . . . . 1 . . . . . . . . Sentry 9 | . . . . . 3 4 . . . . . . . 2 . . Hunter 1 | . . . . . . 1 . . . . . . . . . . Programmer 6 | . . . . . . 3 . 1 . . . 1 . 1 . . Behemoth 1 | . . . . . . . . . . . . . . 1 . . Decomposer 1 | . . . . . . . . . . 1 . . . . . . Best Kill Streak 7 | 6 7 1 2 . 2 4 1 3 3 1 . 2 . 4 . . Combat Bots Only 5 | . 5 1 2 . 1 4 1 3 3 1 . 2 . 4 . . Max Kills in Single Turn 4 | 1 2 1 1 . 1 4 1 3 2 1 . 1 . 3 . . Gunslinging . | . . . . . . . . . . . . . . . . . Exploded 4 | . 1 . . . . 4 . 3 2 . . . . 3 . . Melee 1 | . . . . . . . . . . . . . . 1 . . Uniques/NPCs Destroyed . | . . . . . . . . . . . . . . . . . Combat | -11 -10 -10 -10 -9 -8 -8 -8 -7 -7 -7 -7 -6 -6 -6 -6 -6 -------- Run | Yrd Mat Min Exi Min Mat Gar Mat Fac Low Low Dat Pro Fac Gar Fac DSF Hostile Shots Fired 347 | . 48 25 . . 9 93 4 52 9 19 . 2 21 53 . 12 Missed 143 | . 18 11 . . 4 28 2 30 2 5 . 2 13 25 . 3 Hits 204 | . 30 14 . . 5 65 2 22 7 14 . . 8 28 . 9 Melee 5 | . . . . . . 4 . . . . . . . 1 . . Projectile 199 | . 30 14 . . 5 61 2 22 7 14 . . 8 27 . 9 AOE 1 | . . . . . . . . . . . . . . . . 1 Critical Strikes 6 | . . . . . . 3 . 1 . . . . . . . 2 Damage Taken 3171 | . 286 199 . . 56 815 55 347 126 210 . 26 57 604 . 390 Core 628 | . 69 51 . . 9 91 . 36 46 26 . . 30 213 . 57 Absorbed by Shields 317 | . . . . . 22 295 . . . . . . . . . . Redirected to Shielding 16 | . . . . . . . 16 . . . . . . . . . Regen/Repaired (Parts) 143 | . . . . . 45 . . 61 . . . . 37 . . . Core Remaining (%) 66 | 100 . . . 22 . . 71 . . . . 74 . . . . Volleys Fired 313 | 22 52 14 4 . 12 66 10 62 4 14 . 15 9 26 . 3 Largest 2 | 1 2 2 2 . 2 2 2 2 1 2 . 2 1 2 . 1 Hottest 130 | 40 80 60 60 . 67 74 74 110 36 95 . 70 80 130 . 50 Shots Fired 479 | 22 94 28 7 . 23 114 20 86 4 24 . 17 9 28 . 3 Gun 136 | 22 22 . . . . . . 66 . 1 . . 2 23 . . Cannon 294 | . 72 28 6 . 23 100 20 7 . 23 . 15 . . . . Launcher 36 | . . . . . . 14 . 13 4 . . . . 4 . 1 Special 13 | . . . 1 . . . . . . . . 2 7 1 . 2 Kinetic 294 | . 72 28 6 . 23 100 20 7 . 23 . 15 . . . . Thermal 62 | 22 16 . . . . . . 1 . . . . 2 21 . . Explosive 36 | . . . . . . 14 . 13 4 . . . . 4 . 1 Electromagnetic 74 | . 6 . . . . . . 65 . 1 . . . 2 . . Robot Hit Streak 18 | 9 7 7 4 . 6 12 8 18 9 11 . 6 9 3 . 3 Robot Miss Streak 6 | 2 6 5 1 . 3 3 3 6 1 3 . 3 2 6 . 6 Penetration Max . | . . . . . . . . . . . . . . . . . Secondary Targets . | . . . . . . . . . . . . . . . . . Shots Hit Robots 268 | 17 44 15 4 . 12 50 12 52 1 18 . 12 6 23 . 2 Core Hits 201 | 8 25 4 2 . 9 37 6 47 6 5 . 6 . 32 . 14 Critical Kills . | . . . . . . . . . . . . . . . . . Critical Parts Destroyed 1 | . . . . . . . . . . . . . . 1 . . Critical Strikes 15 | . 2 1 . . 1 . . 5 . 3 . 2 . 1 . . Burn 1 | . . . . . . . . 1 . . . . . . . . Destroy 1 | . . . . . . . . . . . . . . 1 . . Blast 9 | . 2 1 . . 1 . . . . 3 . 2 . . . . Corrupt 4 | . . . . . . . . 4 . . . . . . . . Melee Attacks 36 | . . . . . . . . . . . . . . 36 . . Impact . | . . . . . . . . . . . . . . . . . Slashing 36 | . . . . . . . . . . . . . . 36 . . Piercing . | . . . . . . . . . . . . . . . . . Sneak Attacks 2 | . . . . . . . . . . . . . . 2 . . Combat Hostiles 1 | . . . . . . . . . . . . . . 1 . . Follow-up Attacks 3 | . . . . . . . . . . . . . . 3 . . Damage Inflicted 9881 | 192 829 266 51 . 220 2117 315 2549 274 420 . 312 . 1950 . 386 Guns 1541 | 192 176 . . . . . . 926 . . . . . 247 . . Cannons 3458 | . 622 266 51 . 220 1145 315 107 . 420 . 312 . . . . Explosions 4255 | . 31 . . . . 972 . 1516 274 . . . . 1076 . 386 Melee 627 | . . . . . . . . . . . . . . 627 . . Ramming . | . . . . . . . . . . . . . . . . . Kinetic 3458 | . 622 266 51 . 220 1145 315 107 . 420 . 312 . . . . Thermal 607 | 192 151 . . . . . . 47 . . . . . 217 . . Explosive 4191 | . . . . . . 972 . 1483 274 . . . . 1076 . 386 Electromagnetic 998 | . 56 . . . . . . 912 . . . . . 30 . . Impact . | . . . . . . . . . . . . . . . . . Slashing 627 | . . . . . . . . . . . . . . 627 . . Piercing . | . . . . . . . . . . . . . . . . . Highest Corruption 4 | . . . . . . 4 4 1 1 1 1 1 1 1 1 1 Average Corruption 1 | . . . . . . 3 4 1 1 1 1 1 1 1 1 1 Corruption Purged . | . . . . . . . . . . . . . . . . . Corruption Blocked . | . . . . . . . . . . . . . . . . . Effects 54 | . . . . . . 23 6 4 3 5 . 5 4 4 . . Message Errors 15 | . . . . . . 5 2 2 . 1 . 2 . 3 . . Matter Fused 9 | . . . . . . 3 1 . 1 2 . . 2 . . . Heat Flow Errors 9 | . . . . . . 3 3 1 . 1 . 1 . . . . Energy Discharges 3 | . . . . . . 1 . . . . . . 1 1 . . Parts Fused 1 | . . . . . . . . . 1 . . . . . . . Data Loss (minor) 11 | . . . . . . 7 . 1 1 . . 2 . . . . Data Loss (major) 4 | . . . . . . 4 . . . . . . . . . . Alerts 1 | . . . . . . . . . . . . . 1 . . . Weapon Failures 1 | . . . . . . . . . . 1 . . . . . . Overload Shots . | . . . . . . . . . . . . . . . . . Overflow Damage 290 | . 7 . . . . 73 . 13 18 32 . . . 147 . . Projectiles 63 | . 7 . . . . 24 . . . 32 . . . . . . Explosions 88 | . . . . . . 49 . 13 18 . . . . 8 . . Melee 139 | . . . . . . . . . . . . . . 139 . . Knockbacks 23 | . 3 4 . . 1 9 1 2 . 3 . . . . . . Impact . | . . . . . . . . . . . . . . . . . Kinetic 22 | . 3 4 . . 1 9 . 2 . 3 . . . . . . Secondary 1 | . . . . . . . 1 . . . . . . . . . Self-Inflicted Damage 489 | . . . . . . 113 . 76 23 . . . . 249 . 28 Shots 20 | . . . . . . 2 . 2 1 . . . . 14 . 1 Rammed . | . . . . . . . . . . . . . . . . . Targets Rammed . | . . . . . . . . . . . . . . . . . Kicked . | . . . . . . . . . . . . . . . . . Crushed . | . . . . . . . . . . . . . . . . . Highest Temperature 302 | . 96 69 . . 3 214 262 149 5 136 . 95 79 302 5 . Average Temperature 36 | . 21 26 . . 3 39 67 30 2 45 . 10 7 79 2 . Received Heat Transfer 1070 | . 87 114 . . 24 238 27 102 . 72 . 9 18 379 . . Siege Activations . | . . . . . . . . . . . . . . . . . Martial Activations . | . . . . . . . . . . . . . . . . . Shielding Activations . | . . . . . . . . . . . . . . . . . Robots Disrupted . | . . . . . . . . . . . . . . . . . Combat Hostiles . | . . . . . . . . . . . . . . . . . Robots Corrupted . | . . . . . . . . . . . . . . . . . Combat Hostiles . | . . . . . . . . . . . . . . . . . Parts Fried 5 | . . . . . . . . 5 . . . . . . . . Impact Corruptions . | . . . . . . . . . . . . . . . . . Robots Melted . | . . . . . . . . . . . . . . . . . Combat Hostiles . | . . . . . . . . . . . . . . . . . Parts Melted 2 | 1 . . . . . . . . . . . . . 1 . . Heat Transferred 1216 | 425 325 . . . . . . 161 . . . . . 305 . . Parts Sabotaged 13 | . . . . . . 13 . . . . . . . . . . Parts Stolen . | . . . . . . . . . . . . . . . . . Parts Stripped . | . . . . . . . . . . . . . . . . . Power Chain Reactions 2 | . 1 . . . . . . 1 . . . . . . . . Alert | -11 -10 -10 -10 -9 -8 -8 -8 -7 -7 -7 -7 -6 -6 -6 -6 -6 ------- Run | Yrd Mat Min Exi Min Mat Gar Mat Fac Low Low Dat Pro Fac Gar Fac DSF Maximum Alert Level 5 | . 1 . . . . 5 3 4 . . . . . 3 2 1 Low Security (%) 35 | 100 60 100 . 100 100 4 . . . . . . 100 7 . . Level 1 11 | . 39 . . . . 8 . 1 . . . . . 6 . 100 Level 2 18 | . . . . . . 14 . 61 . . . . . 36 100 . Level 3 20 | . . . . . . 28 100 21 . . . . . 50 . . Level 4 10 | . . . . . . 30 . 15 . . . . . . . . Level 5 3 | . . . . . . 13 . . . . . . . . . . High Security . | . . . . . . . . . . . . . . . . . Max Security . | . . . . . . . . . . . . . . . . . Peak Influence 1920 | 15 257 156 . . 80 1920 1020 1246 . . . . 172 819 429 345 Initial 936 | . 3 82 . . . 35 936 414 . . . . 150 16 429 293 Average 534 | 2 140 90 . . 35 1017 967 710 . . . . 78 633 428 305 Influence Increases 6569 | 35 684 124 152 . 234 1905 136 1316 87 205 . 124 407 1013 . 147 Destroy 0b10 Robot/C 3100 | . 380 80 120 . 120 820 40 680 60 140 . 80 100 420 . 60 Destroy 0b10 Robot/NC 235 | 35 35 . . . 20 . 35 90 . 5 . 10 . 5 . . Destroy Leader 472 | . 88 20 . . 44 20 14 166 10 20 . 10 30 40 . 10 Allied During Kill 847 | . 118 24 32 . 42 211 19 174 17 40 . 24 31 98 . 17 Successful Hack 225 | . 27 . . . 4 30 8 68 . . . . 76 12 . . Disable Machine 180 | . 30 . . . . 45 15 30 . . . . . 60 . . Anti-Garrison Action 750 | . . . . . . 600 . . . . . . . 150 . . Destroy Structure 400 | . 6 . . . 4 179 5 48 . . . . 5 138 . 15 Advance Influence 150 | . . . . . . . . . . . . . 150 . . . Partial Spotted 45 | . . . . . . . . 15 . . . . 15 15 . . Lose Combat Pursuer 165 | . . . . . . . . 45 . . . . . 75 . 45 Influence Decreases 6229 | 30 476 301 126 62 180 39 1144 1002 604 539 375 124 383 218 400 226 Entered New Map 3220 | . 2 131 36 62 . 19 984 498 454 135 375 . . 8 390 126 Time Decay 2543 | 30 464 170 60 . 180 . 160 494 140 374 . 118 343 . 10 . Lost Part 366 | . 10 . 10 . . 10 . 10 10 30 . 6 . 180 . 100 Lost Ally 100 | . . . 20 . . 10 . . . . . . 40 30 . . Squads Dispatched 30 | . 4 . . . 2 . . 16 . . . . 6 . . 2 Investigation 8 | . 3 . . . . . . 3 . . . . 2 . . . Extermination 6 | . . . . . . . . 3 . . . . 3 . . . Reinforcement 11 | . 1 . . . 2 . . 5 . . . . 1 . . 2 Assault 2 | . . . . . . . . 2 . . . . . . . . Garrison 3 | . . . . . . . . 3 . . . . . . . . Intercept . | . . . . . . . . . . . . . . . . . Searches Triggered . | . . . . . . . . . . . . . . . . . Construction Impeded 1 | . . . . . . . . 1 . . . . . . . . Haulers Reinforced 1 | . . . . . . . . 1 . . . . . . . . Active Scanning Responses . | . . . . . . . . . . . . . . . . . Cargo Convoy Interrupts . | . . . . . . . . . . . . . . . . . Stealth | -11 -10 -10 -10 -9 -8 -8 -8 -7 -7 -7 -7 -6 -6 -6 -6 -6 --------- Run | Yrd Mat Min Exi Min Mat Gar Mat Fac Low Low Dat Pro Fac Gar Fac DSF Distress Signals 1 | . 1 . . . . . . . . . . . . . . . Communications Jammed . | . . . . . . . . . . . . . . . . . Distress Signals . | . . . . . . . . . . . . . . . . . Times Spotted 173 | . 27 4 4 . 9 38 3 36 3 7 . 5 7 22 . 8 Peak Tracking Total 6 | . 3 2 2 . 2 6 2 5 3 4 . 3 3 6 . 6 Tactical Retreats 8 | . . . . . . . . 3 . . . . . 3 . 2 Traps | -11 -10 -10 -10 -9 -8 -8 -8 -7 -7 -7 -7 -6 -6 -6 -6 -6 ------- Run | Yrd Mat Min Exi Min Mat Gar Mat Fac Low Low Dat Pro Fac Gar Fac DSF Traps Triggered 9 | . 2 . . . . 1 . 2 . . . . . 3 . 1 Indirectly . | . . . . . . . . . . . . . . . . . Trap Hack Attempts . | . . . . . . . . . . . . . . . . . Triggered . | . . . . . . . . . . . . . . . . . Disarmed . | . . . . . . . . . . . . . . . . . Reprogrammed . | . . . . . . . . . . . . . . . . . Reused . | . . . . . . . . . . . . . . . . . Traps Extracted . | . . . . . . . . . . . . . . . . . Installed . | . . . . . . . . . . . . . . . . . Triggered . | . . . . . . . . . . . . . . . . . Machines | -11 -10 -10 -10 -9 -8 -8 -8 -7 -7 -7 -7 -6 -6 -6 -6 -6 ---------- Run | Yrd Mat Min Exi Min Mat Gar Mat Fac Low Low Dat Pro Fac Gar Fac DSF Machines Disabled 24 | . 3 . 1 . . 10 1 2 . . . . . 7 . . Max in Single Turn 1 | . 1 . . . . 1 1 1 . . . . . 1 . . Garrison Relay 8 | . . . . . . 5 . . . . . . . 3 . . Phase Generator 1 | . . . . . . 1 . . . . . . . . . . Machines Repaired . | . . . . . . . . . . . . . . . . . Machines Dismantled . | . . . . . . . . . . . . . . . . . Machines Sabotaged . | . . . . . . . . . . . . . . . . . Overloaded Fab Kills . | . . . . . . . . . . . . . . . . . Hacking | -11 -10 -10 -10 -9 -8 -8 -8 -7 -7 -7 -7 -6 -6 -6 -6 -6 --------- Run | Yrd Mat Min Exi Min Mat Gar Mat Fac Low Low Dat Pro Fac Gar Fac DSF Machines Accessed 49 | . 6 1 3 . 4 4 3 12 . 1 4 . 9 1 1 . Terminals 23 | . 6 . . . 2 4 2 3 . . . . 4 1 1 . Fabricators 4 | . . . . . . . . 2 . . . . 2 . . . Repair Stations 3 | . . . . . 1 . . 1 . . . . 1 . . . Recycling Units 2 | . . . . . . . . 2 . . . . . . . . Scanalyzers 4 | . . . . . . . 1 3 . . . . . . . . Garrison Access 4 | . . . . . 1 . . 1 . . . . 2 . . . Total Hacks 180 | . 26 1 26 . 10 7 12 33 . 1 28 . 34 1 1 . Successful 131 | . 13 1 26 . 6 3 10 21 . 1 28 . 20 1 1 . Failed 48 | . 13 . . . 4 4 1 12 . . . . 14 . . . Catastrophic 5 | . 1 . . . 1 1 . . . . . . 2 . . . Database Lockouts 1 | . . . . . . . 1 . . . . . . . . . Manual 73 | . 23 . 1 . 4 . 5 16 . . . . 24 . . . Terminals 82 | . 26 . . . 7 7 8 14 . . . . 18 1 1 . Fabricators 7 | . . . . . . . . 3 . . . . 4 . . . Repair Stations 10 | . . . . . 2 . . 4 . . . . 4 . . . Recycling Units 4 | . . . . . . . . 4 . . . . . . . . Scanalyzers 9 | . . . . . . . 4 5 . . . . . . . . Garrison Access 12 | . . . . . 1 . . 3 . . . . 8 . . . Terminal Hacks 78 | . 3 1 26 . 1 3 3 6 . 1 28 . 4 1 1 . Record 37 | . . . 26 . . . . . . . 11 . . . . . Part Schematic 9 | . . . . . . . . . . . 8 . 1 . . . Robot Schematic 6 | . . . . . . . . . . . 6 . . . . . Robot Analysis 3 | . 1 . . . . . 2 . . . . . . . . . Prototype ID Bank 7 | . 1 . . . 1 . . 1 . . 3 . 1 . . . Open Door 3 | . . 1 . . . 1 . . . 1 . . . . . . Open DSF 1 | . . . . . . . . . . . . . . . 1 . Branch Access Points 1 | . . . . . . . 1 . . . . . . . . . Emergency Access Points 2 | . . . . . . 1 . . . . . . . 1 . . Terminal Index 1 | . . . . . . . . 1 . . . . . . . . Fabricator Index 1 | . . . . . . . . . . . . . 1 . . . Alert Level 2 | . . . . . . . . 2 . . . . . . . . Investigation Status 1 | . . . . . . . . 1 . . . . . . . . Garrison Status 1 | . . . . . . . . . . . . . 1 . . . Registered Components 1 | . . . . . . . . 1 . . . . . . . . Zone Layout 1 | . 1 . . . . . . . . . . . . . . . Patrol Navigation 1 | . . . . . . 1 . . . . . . . . . . Fabricator Hacks 3 | . . . . . . . . 1 . . . . 2 . . . Network Status 1 | . . . . . . . . 1 . . . . . . . . Build 2 | . . . . . . . . . . . . . 2 . . . Repair Station Hacks 7 | . . . . . 2 . . 3 . . . . 2 . . . Scan Component 3 | . . . . . 1 . . 1 . . . . 1 . . . Repair 3 | . . . . . 1 . . 1 . . . . 1 . . . Refit 1 | . . . . . . . . 1 . . . . . . . . Recycling Unit Hacks 1 | . . . . . . . . 1 . . . . . . . . Report Inventory 1 | . . . . . . . . 1 . . . . . . . . Scanalyzer 7 | . . . . . . . 3 4 . . . . . . . . Insert Component 2 | . . . . . . . 1 1 . . . . . . . . Analyze 2 | . . . . . . . 1 1 . . . . . . . . Retrieve Study 3 | . . . . . . . 1 2 . . . . . . . . Garrison Access Hacks 3 | . . . . . 1 . . 1 . . . . 1 . . . Unlock Access 3 | . . . . . 1 . . 1 . . . . 1 . . . Unauthorized Hacks 32 | . 10 . . . 2 . 4 5 . . . . 11 . . . Terminals 26 | . 10 . . . 2 . 4 4 . . . . 6 . . . Botnet 14 | . 5 . . . 1 . 2 2 . . . . 4 . . . Operators 1 | . . . . . . . . 1 . . . . . . . . Skim 11 | . 5 . . . 1 . 2 1 . . . . 2 . . . Fabricators 2 | . . . . . . . . 1 . . . . 1 . . . Liberate 1 | . . . . . . . . . . . . . 1 . . . Fabnet 1 | . . . . . . . . 1 . . . . . . . . Repair Stations 1 | . . . . . . . . . . . . . 1 . . . Mechanics 1 | . . . . . . . . . . . . . 1 . . . Recycling Units . | . . . . . . . . . . . . . . . . . Scanalyzers . | . . . . . . . . . . . . . . . . . Garrison Access 3 | . . . . . . . . . . . . . 3 . . . Broadcast 1 | . . . . . . . . . . . . . 1 . . . Decoy 1 | . . . . . . . . . . . . . 1 . . . Watchers 1 | . . . . . . . . . . . . . 1 . . . Data Cores Recovered 1 | . . . . . . . 1 . . . . . . . . . Used . | . . . . . . . . . . . . . . . . . Hacking Detections 33 | . 6 . . . 3 2 2 12 . . . . 8 . . . Full Trace Events 4 | . 1 . . . . . . 2 . . . . 1 . . . Feedback Events 1 | . . . . . . . . . . . . . 1 . . . Corruption 1 | . . . . . . . . . . . . . 1 . . . Feedback Blocked . | . . . . . . . . . . . . . . . . . Robot Schematics Acquired 6 | . . . . . . . . . . . 6 . . . . . Robots Built 2 | . . . . . . . . . . . . . 2 . . . Authchips . | . . . . . . . . . . . . . . . . . Time 76 | . . . . . . . . . . . . . 76 . . . Total Robot Build Rating 10 | . . . . . . . . . . . . . 10 . . . Part Schematics Acquired 11 | . . . . . . . 1 1 . . 8 . 1 . . . Parts Built . | . . . . . . . . . . . . . . . . . Authchips . | . . . . . . . . . . . . . . . . . Time 42 | . . . . . . . . . . . . . 42 . . . Total Part Build Rating . | . . . . . . . . . . . . . . . . . Part Studies Acquired 3 | . . . . . . . 1 2 . . . . . . . . Parts Repaired 3 | . . . . . 1 . . 1 . . . . 1 . . . Time 83 | . . . . . 26 . . 38 . . . . 19 . . . Parts Recycled . | . . . . . . . . . . . . . . . . . Recycled Matter . | . . . . . . . . . . . . . . . . . Retrieved Matter . | . . . . . . . . . . . . . . . . . Retrieved Components . | . . . . . . . . . . . . . . . . . Parts Scanalyzed 2 | . . . . . . . 1 1 . . . . . . . . Part Schematics Acquired 2 | . . . . . . . 1 1 . . . . . . . . Parts Damaged . | . . . . . . . . . . . . . . . . . Bothacking | -11 -10 -10 -10 -9 -8 -8 -8 -7 -7 -7 -7 -6 -6 -6 -6 -6 ------------ Run | Yrd Mat Min Exi Min Mat Gar Mat Fac Low Low Dat Pro Fac Gar Fac DSF Used RIF Installer 2 | . . . . . . 1 . . . . . . . 1 . . Robot Detection 1 | . . . . . . . . . . . . . . 1 . . Robots Hacked 5 | . . . . . . . . . . . . 1 3 1 . . Non-combat 3 | . . . . . . . . . . . . . 3 . . . Combat 2 | . . . . . . . . . . . . 1 . 1 . . Robot Hacks Applied 6 | . . . . . . . . . . . . 1 5 . . . parse_system 2 | . . . . . . . . . . . . 1 1 . . . no_distress 1 | . . . . . . . . . . . . . 1 . . . map_route 1 | . . . . . . . . . . . . . 1 . . . overload_power 1 | . . . . . . . . . . . . . 1 . . . formatsys_high 1 | . . . . . . . . . . . . . 1 . . . Relay Couplers Released 32 | . . . . . . 20 . . . . . . . 12 . . Machine Destruction 32 | . . . . . . 20 . . . . . . . 12 . . Attached 3 | . . . . . . . 2 . . . . . 1 . . . Fabnet Peak Effective % 3 | . . . . . . . . . . . . 3 3 3 3 3 Autooverrided 1 | . . . . . . . . . . . . . . 1 . . Robots Rewired . | . . . . . . . . . . . . . . . . . Allies Hacked . | . . . . . . . . . . . . . . . . . Hacks Repelled . | . . . . . . . . . . . . . . . . . Allies | -11 -10 -10 -10 -9 -8 -8 -8 -7 -7 -7 -7 -6 -6 -6 -6 -6 -------- Run | Yrd Mat Min Exi Min Mat Gar Mat Fac Low Low Dat Pro Fac Gar Fac DSF Total Allies 7 | . 1 . 1 . . 1 . . . . . . 3 1 . . Largest Group 3 | . 1 1 2 1 1 2 1 1 1 1 1 1 3 2 1 1 Highest-Rated Group 188 | . 57 57 91 58 74 102 80 94 94 92 92 92 188 117 112 113 Highest-Rated Ally 117 | . 57 57 58 58 74 77 80 94 94 92 92 92 102 117 112 113 Total Orders 18 | . . . . . . 2 . . . 2 . 12 2 . . . EXPLORE 10 | . . . . . . 2 . . . 1 . 5 2 . . . RETURN 8 | . . . . . . . . . . 1 . 7 . . . . Ally Attacks 229 | . 20 12 7 . 12 32 2 46 . 10 . 10 9 58 . 11 Total Damage 9332 | . 382 280 285 . 402 1446 179 2696 . 380 . 589 442 1706 . 545 Kills 91 | . 4 2 4 . 4 17 5 28 . 5 . 2 5 12 . 3 Allies Corrupted . | . . . . . . . . . . . . . . . . . Allies Melted . | . . . . . . . . . . . . . . . . . Field Lobotomies 1 | . . . 1 . . . . . . . . . . . . . Intel | -11 -10 -10 -10 -9 -8 -8 -8 -7 -7 -7 -7 -6 -6 -6 -6 -6 ------- Run | Yrd Mat Min Exi Min Mat Gar Mat Fac Low Low Dat Pro Fac Gar Fac DSF Active Infowar (turns) 3031 | 8 1557 354 498 119 421 72 . . . . . . 2 . . . Seismic 3029 | 8 1557 354 498 119 421 72 . . . . . . . . . . ECM 2 | . . . . . . . . . . . . . 2 . . . Robot Analysis Total 3 | . 1 . . . . . 2 . . . . . . . . . Derelict Logs Recovered 5 | . . . . 1 . . . . . 2 . 2 . . . . Drone Launches 15 | . . . . . . 3 . . . 1 . 9 2 . . . Drone Recoveries 13 | . . . . . . 2 . . . 1 . 8 2 . . . Exploration | -11 -10 -10 -10 -9 -8 -8 -8 -7 -7 -7 -7 -6 -6 -6 -6 -6 ------------- Run | Yrd Mat Min Exi Min Mat Gar Mat Fac Low Low Dat Pro Fac Gar Fac DSF Turns Passed 10899 | 151 1557 354 498 119 421 2159 335 1310 287 867 74 857 806 999 20 85 Spaces Moved 7702 | 76 845 174 282 74 177 978 208 1567 271 357 87 674 735 1045 29 123 Core 14 | 9 1 . . . . 4 . . . . . . . . . . Treads 2484 | . 728 174 282 74 177 974 75 . . . . . . . . . Legs 183 | 67 116 . . . . . . . . . . . . . . . Wheels . | . . . . . . . . . . . . . . . . . Hover . | . . . . . . . . . . . . . . . . . Flight 5021 | . . . . . . . 133 1567 271 357 87 674 735 1045 29 123 Fastest Speed 20 | 50 120 160 160 160 160 166 99 23 24 25 25 24 21 20 26 26 Average Speed 73 | 114 154 160 160 160 162 172 126 25 24 25 25 24 21 21 26 30 Slowest Speed 550 | 120 300 160 160 160 170 550 455 96 24 27 25 96 97 89 26 100 Overloaded Moves . | . . . . . . . . . . . . . . . . . Propulsion Burnouts . | . . . . . . . . . . . . . . . . . Robots Hopped 11 | . . . . . . . . 4 . 4 . 1 2 . . . Potential Cave-ins 1 | . . . . . . . . . . . . . . 1 . . Cave-ins Triggered . | . . . . . . . . . . . . . . . . . Exploration Rate (%) 48 | 3 77 37 62 17 18 84 16 32 44 97 71 96 18 80 1 69 Regions Visited 16 Branch Regions 7 Pre-discovered Areas 3 | . . . . . . . . . . 1 1 1 . . . . Known Exits Taken 4 | . . . . . 1 . . . . . . 1 1 . 1 . Unknown Exits Taken 10 | 1 1 1 1 1 . . 1 1 1 1 1 . . . . . Scrap Searched 11 | . . . . . . . . . 6 2 . 3 . . . . Spaces Dug 2 | . . . . . . 2 . . . . . . . . . . Terrain Destroyed 328 | . 2 . . . 2 130 1 52 47 5 . 3 . 71 . 15 Melee . | . . . . . . . . . . . . . . . . . Projectile 13 | . . . . . 2 1 1 . . 5 . 3 . 1 . . AOE 315 | . 2 . . . . 129 . 52 47 . . . . 70 . 15 Terrain Rammed . | . . . . . . . . . . . . . . . . . Walls Destroyed . | . . . . . . . . . . . . . . . . . Machines Disabled . | . . . . . . . . . . . . . . . . . Actions | -11 -10 -10 -10 -9 -8 -8 -8 -7 -7 -7 -7 -6 -6 -6 -6 -6 --------- Run | Yrd Mat Min Exi Min Mat Gar Mat Fac Low Low Dat Pro Fac Gar Fac DSF Total 12399 | 118 1006 223 321 75 286 1330 263 2377 487 1105 138 1348 1376 1739 40 167 Wait 4029 | . 70 31 30 2 80 239 19 705 206 733 52 647 606 579 12 18 Move 7662 | 75 844 173 281 73 176 976 207 1558 270 348 86 671 730 1043 28 123 Hop 11 | . . . . . . . . 4 . 4 . 1 2 . . . Pick Up 64 | 12 13 2 1 . 3 7 5 6 1 1 . 2 3 8 . . Fast Attach 54 | 5 5 . . . 1 12 7 9 . . . 2 4 5 . 4 Attach 32 | 1 2 . 1 . 5 2 2 2 1 3 . 4 4 4 . 1 Detach 23 | . 5 . 1 . . 1 1 2 . 2 . 3 4 2 . 2 Swap 72 | . 3 . 2 . 6 20 . 18 3 . . 2 6 9 . 3 Drop 78 | 3 12 3 1 . 3 7 12 11 1 . . 1 8 13 . 3 Fire 313 | 22 52 14 4 . 12 66 10 62 4 14 . 15 9 26 . 3 Melee 30 | . . . . . . . . . . . . . . 30 . . Ram . | . . . . . . . . . . . . . . . . . Kick . | . . . . . . . . . . . . . . . . . Crush . | . . . . . . . . . . . . . . . . . Escape Stasis 30 | . . . . . . . . . . . . . . 20 . 10 Rewire . | . . . . . . . . . . . . . . . . . Trap . | . . . . . . . . . . . . . . . . . Miscellaneous 1 | . . . . . . . . . 1 . . . . . . . Route ------- -11/Scrapyard -10/Materials (discovered 5 exits: [*Mat x2] / *Min x2 / [*Sub]) -10/Mines (discovered 2 exits: [*Mat] / *Exi) -10/Exiles -9/Mines -8/Materials (discovered 2 exits: *Sto / Gar) -8/Garrison (discovered 4 exits: *Mat x4) -8/Materials (discovered 3 exits: *Fac / Sto x2) -7/Factory (discovered 4 exits: *Fac / [*Low x2] / Gar) -7/Lower Caves -7/Lower Caves (discovered 2 exits: *Fac / *Dat) -7/Data Miner -6/Proximity Caves -6/Factory (discovered 3 exits: [*Fac] / [Low] / Gar) -6/Garrison (discovered 3 exits: *Fac x3) -6/Factory -6/DSF (discovered 1 exit: [*Fac]) History --------- Turn | Location | Event 7 | -11/Scrapyard | Discovered new exit (range 16) 152 | -11/Scrapyard | Entered Materials 214 | -10/Materials | Discovered new exit (range 16) 326 | -10/Materials | Build established: Mutant 702 | -10/Materials | Discovered new exit (range 13) 847 | -10/Materials | Discovered new exit (range 10) 998 | -10/Materials | Discovered new exit (range 11) 1479 | -10/Materials | Discovered new exit (range 11) 1709 | -10/Materials | Entered Mines 1765 | -10/Mines | Core integrity fell below 50% 1785 | -10/Mines | Discovered new exit (range 12) 1955 | -10/Mines | Deemed a non-threat by the Exiles lab entrance 1955 | -10/Mines | Discovered new exit (range 5) 1977 | -10/Mines | Found the Drone Emporium 1985 | -10/Mines | Found Prototype Device 2063 | -10/Mines | Entered Exiles 2100 | -10/Exiles | Met 8R-AWN 2129 | -10/Exiles | Met EX-HEX 2175 | -10/Exiles | Met EX-BIN 2196 | -10/Exiles | Aligned with FarCom system 2198 | -10/Exiles | Given EX-Vault access code 2245 | -10/Exiles | Opened EX-Vault 2307 | -10/Exiles | Warned to stay clear of 0b10 Research branches 2310 | -10/Exiles | Exiles lab attacked by MAIN.C 2367 | -10/Exiles | Found Prototype Special Weapon 2409 | -10/Exiles | Identified Field Lobotomy Kit 2411 | -10/Exiles | Assimilated D-53 Grenadier with FLK Orb 2517 | -10/Exiles | Discovered new exit (range 14) 2561 | -10/Exiles | Left Exiles lab with Field Lobotomy Kit 2561 | -10/Exiles | Entered Mines 2580 | -9/Mines | Learned Materials garrison access intel 2603 | -9/Mines | Met a Derelict bent on vengeance 2670 | -9/Mines | Discovered new exit (range 6) 2680 | -9/Mines | Entered Materials 2680 | -8/Materials | Evolved 4 slots: Propulsion x1, Utility x3 2681 | -8/Materials | Loaded intel: 1 garrison access location 2729 | -8/Materials | Discovered new exit (range 11) 2952 | -8/Materials | Repaired Lgt. Cannon 2966 | -8/Materials | Build established: Hacker-Mutant 3099 | -8/Materials | Identified exit to Garrison 3101 | -8/Materials | Entered Garrison 3164 | -8/Garrison | Triggered checkpoint 3169 | -8/Garrison | Triggered checkpoint 3239 | -8/Garrison | Triggered checkpoint 3380 | -8/Garrison | Garrison Relay disabled 3386 | -8/Garrison | Triggered checkpoint 3429 | -8/Garrison | Discovered new exit (range 3) 3471 | -8/Garrison | Identified Sensor Drone Bay 3555 | -8/Garrison | Discovered new exit (range 67) 3563 | -8/Garrison | Triggered checkpoint 3822 | -8/Garrison | Discovered new exit (range 13) 3949 | -8/Garrison | Triggered checkpoint 4252 | -8/Garrison | Garrison Relay disabled 4345 | -8/Garrison | Triggered checkpoint 4527 | -8/Garrison | Rescued a captive Derelict 4537 | -8/Garrison | Garrison Relay disabled 4818 | -8/Garrison | Phase Generator disabled 4854 | -8/Garrison | Discovered new exit (range 9) 4951 | -8/Garrison | Triggered checkpoint 5169 | -8/Garrison | Garrison Relay disabled 5214 | -8/Garrison | Installed Relay Interface Framework 5260 | -8/Garrison | Entered Materials 5369 | -8/Materials | Identified exit to Storage 5472 | -8/Materials | Central database locked down 5577 | -8/Materials | Discovered new exit (range 5) 5595 | -8/Materials | Entered Factory 5595 | -7/Factory | Evolved 2 slots: Propulsion x2 5602 | -7/Factory | Discovered new exit (range 8) 5626 | -7/Factory | Identified exit to Garrison 5857 | -7/Factory | Discovered new exit (range 13) 5892 | -7/Factory | Build established: Hacker-Sprinter 5928 | -7/Factory | Garrison activated, responded to threat 6292 | -7/Factory | Repaired Imp. Grenade Launcher 6395 | -7/Factory | First assault squad dispatched 6824 | -7/Factory | Discovered new exit (range 4) 6905 | -7/Factory | Entered Lower Caves 6997 | -7/Lower Caves | Activated DRS Beacon 7073 | -7/Lower Caves | Discovered new exit (range 7) 7085 | -7/Lower Caves | Build established: Scavenger-Sprinter 7192 | -7/Lower Caves | Entered another Lower Caves area 7256 | -7/Lower Caves | Learned Factory terminal intel 7528 | -7/Lower Caves | Discovered new exit (range 74) 7702 | -7/Lower Caves | Build established: Mutant 7789 | -7/Lower Caves | Discovered new exit (range 57) 7792 | -7/Lower Caves | Identified exit to Factory 7883 | -7/Lower Caves | Entered an active Warlord outpost 8059 | -7/Lower Caves | Entered Data Miner 8059 | -7/Data Miner | Discovered new exit (range 6) 8064 | -7/Data Miner | Met Data Miner 8070 | -7/Data Miner | Learned location of Section 7 (-3) 8070 | -7/Data Miner | Acquired the access code to Warlord's prototype stash 8075 | -7/Data Miner | Received God Mode back door access code from Data Miner 8133 | -7/Data Miner | Entered Proximity Caves 8136 | -6/Proximity Caves | Spotter reported a threat 8384 | -6/Proximity Caves | Attracted the attention of an 0b10 checkpoint 8400 | -6/Proximity Caves | Learned Factory terminal intel 8524 | -6/Proximity Caves | Build established: Scavenger-Sprinter 8537 | -6/Proximity Caves | Found DCF Scrap (16 items) 8603 | -6/Proximity Caves | Learned location of Zion (-6) 8878 | -6/Proximity Caves | Discovered exit to Factory (range 13) 8990 | -6/Proximity Caves | Entered Factory 8990 | -6/Factory | Evolved 2 slots: Propulsion x1, Utility x1 8991 | -6/Factory | Loaded intel: 26 terminal locations 9153 | -6/Factory | Found Prototype Launcher 9216 | -6/Factory | Repaired Lgt. Nuclear Core 9377 | -6/Factory | Fabricated X-67 Chaingunner (x2) 9447 | -6/Factory | Build established: Hacker-Sprinter 9514 | -6/Factory | Discovered new exit (range 56) 9623 | -6/Factory | Discovered new exit (range 125) 9774 | -6/Factory | Identified exit to Garrison 9796 | -6/Factory | Entered Garrison 9796 | -6/Garrison | Accompanied by 1 ally 9856 | -6/Garrison | Identified Scatter Rocket Array 9862 | -6/Garrison | Triggered checkpoint 9862 | -6/Garrison | Triggered checkpoint 9866 | -6/Garrison | Spotted B-75 Beast 9877 | -6/Garrison | Destroyed B-75 Beast 9892 | -6/Garrison | Triggered checkpoint 9934 | -6/Garrison | Triggered checkpoint 10000 | -6/Garrison | Discovered new exit (range 14) 10033 | -6/Garrison | Expanded RIF knowledge: Robot Detection 10036 | -6/Garrison | Garrison Relay disabled 10044 | -6/Garrison | Triggered checkpoint 10303 | -6/Garrison | Discovered new exit (range 15) 10345 | -6/Garrison | Build established: Bothacker-Sprinter 10439 | -6/Garrison | Garrison Relay disabled 10464 | -6/Garrison | Discovered new exit (range 9) 10609 | -6/Garrison | Spotted B-75 Beast 10678 | -6/Garrison | Core integrity fell below 50% 10745 | -6/Garrison | Garrison Relay disabled 10761 | -6/Garrison | Spotted B-75 Beast 10795 | -6/Garrison | Entered Factory 10796 | -6/Factory | Loaded intel: 26 terminal locations 10803 | -6/Factory | Identified exit to DSF 10815 | -6/Factory | Entered DSF 10841 | -6/DSF | Additional patrols routed to DSF 10871 | -6/DSF | Discovered new exit (range 15) 10894 | -6/DSF | Core integrity fell below 20% 10900 | -6/DSF | Core destroyed Last Messages --------------- 10877_ Acquired 119 matter. 10877_ Player 2 Unknown Energy Gun severed. 10877_ Acquired 2 matter. Player 2: "Guess who would like you to consider not picking up all the Matter?" 10880_ Acquired Hardlight Generator. 10881_ Dropped Hardlight Generator. 10890_ Triggered Stasis Trap. 10890_ A bubble of rippling energy engulfs the area. 10890_ Field strength at 94. 10890_ Field strength at 88. 10891_ Field strength at 82. 10892_ Field strength at 76. 10893_ Field strength at 70. 10894_ Field strength at 64. 10895_ Field strength at 58. 10896_ Field strength at 52. 10897_ Field strength at 46. 10898_ Field strength at 40. 10899_ Field strength at 34. Map ----- +----------------------------------------------------+ | ??# [#??????#]] #????????????????????? | | ??# [[#??????#]] #????????????????????? | | ??## ###??????### ###????????????????????? | | ??# [[#????????= !??????????????????????? | | ??# ] [#????????= !!?????????????????????? | | ??# [[[[#???????== !!?????????????????????? | | ?###%]########## # ###????????????????????? | | ?# *=## ## #??????????????????????? | | ?# ! #?????????????????????? | | ?# ?????????????????????? | | ?#% % ?????????????????????? | | ?# ?????????????????????? | | ?#!! [## H # ??????????????????????? | | ?#!! #? ! ### #??????????????????????? | | ?###=!####### ## ##?????????????????????? | | ??# = #?????##!! ||?????????????????????? | | ??#% #????????! |??????????????????????? | | ??# #????????! |??????????????????????? | | ??## ###??????### ###????????????????????? | | ??#! !!#??????# !!#????????????????????? | | ??#! !!#??????# !!#????????????????????? | | ??## ########## !!#####??#?????????????? | | ?### ### #!!!#?# #?# #?]#?????#???????? | | ##"" ## #!!!### ### #]]## ""#??????? | | """" """??????? | | ##""< @ ""#??????? | | ?#"""""## #!!!#!!!!!!!#]]]# ##""""????????? | | ?#"""""#########!!!!!!!#####????????????????? | | ?####"##???????#########????????????????????? | | ????#"#?????????????????????????????????????? | | ????""#?????????????????????????????????????? | | ????????????????????????????????????????????? | | ????????????????????????????????????????????? | | ????????????????????????????????????????????? | | ????????????????????????????????????????????? | | ????????????????????????????????????????????? | | | | | | | | | | | | | | | | | | | | | | | | | | | | | +----------------------------------------------------+ Best States ------------- Heat Dissipation 37 Energy Generation 23 Energy Capacity 265 Matter Stores 300 Matter Capacity 300 Sight Range 16 Terrain Scan Density 10 Armor Coverage 150 Propulsion Shielding 33 Evasion (%) 66 Launcher Accuracy 40 Target Analysis 5 Recoil Reduction 3 Offensive Hacking 20 Defensive Hacking 10 Relay Coupler Types 2 Relay Coupler Value 80 Item Schematics ----------------- Imp. VTOL Module | -8/Materials | Scanalyzed System Shield | -7/Factory | Scanalyzed Combat Drone Bay | -7/Data Miner | Free Lgt. Regenerative Plating | -7/Data Miner | Free Cld. Aerolev Unit | -7/Data Miner | Free Gravity Neutralizer | -7/Data Miner | Free Imp. Lightning Gun | -7/Data Miner | Free Nuclear Pulse Array | -7/Data Miner | Free Adv. Hacking Suite | -7/Data Miner | Free Mass Driver | -7/Data Miner | Free Hyp. Gauss Cannon | -6/Factory | Hacked Robot Schematics ------------------ A-15 Conveyor | -7/Data Miner | Free R-10 Processor | -7/Data Miner | Free W-25 Informer | -7/Data Miner | Free M-22 Extractor | -7/Data Miner | Free L-41 Fighter | -7/Data Miner | Free Y-64 Sentinel | -7/Data Miner | Free Fabricated ------------ X-67 Chaingunner | x2 | -6/Factory | Preloaded Repaired ---------- Lgt. Cannon | 62% | -8/Materials Imp. Grenade Launcher | 18% | -7/Factory Lgt. Nuclear Core | 26% | -6/Factory Studied --------- Lgt. Cannon | -8/Materials | Hacked Lightning Gun | -7/Factory | Hacked Imp. Grenade Launcher | -7/Factory | Hacked Alien Tech Used ----------------- None Achievements -------------- None Challenges ------------ None Player 2 | -11 -10 -10 -10 -9 -8 -8 -8 -7 -7 -7 -7 -6 -6 -6 -6 -6 ---------- Run | Yrd Mat Min Exi Min Mat Gar Mat Fac Low Low Dat Pro Fac Gar Fac DSF Slots Evolved 8 | . . . . 4 . . 2 . . . . 2 . . . . Power 1 | . . . . . . . . . . . . 1 . . . . Propulsion 2 | . . . . 1 . . 1 . . . . . . . . . Utility 3 | . . . . 1 . . 1 . . . . 1 . . . . Weapon 2 | . . . . 2 . . . . . . . . . . . . Parts Attached 105 | . 11 . 2 . 15 11 4 16 1 . . 3 5 34 . 3 Parts Lost 23 | . . . 1 . . . . . . . . 1 . 16 . 5 Damage Taken 4790 | . 74 138 64 . 131 227 . 627 38 . . 225 57 2249 . 960 Core 775 | . 11 40 22 . 10 45 . 43 . . . 27 . 259 . 318 Player 2/Cogmind (%) 55 | . 13 43 100 . 52 33 . 54 . . . 100 . 54 . 84 Absorbed by Shields 491 | . . . 12 . 50 84 . 257 14 . . 74 . . . . Damage Inflicted 8969 | . 382 280 88 . 402 1417 179 2696 . 380 . 589 364 1647 . 545 Player 2/Cogmind (%) 47 | . 31 51 63 . 64 40 36 51 . 47 . 65 100 45 . 58 Combat Hostiles Destroyed 75 | . 2 2 2 . 2 16 1 23 . 5 . 2 5 12 . 3 Player 2/Cogmind (%) 48 | . 10 50 50 . 33 39 50 65 . 71 . 33 100 57 . 100 Game ------ Seed ProtonElectronObliterator Manual? 0 Play Time 01:34:12 Cumulative 55.8 hours Start 2026.02.25 @ 21:20:08 End 2026.02.25 @ 22:51:44 Sessions 1 Manual Loads 0 Difficulty Rogue Special Mode AFD2020/Player2 Game No. 93 Rogue 93 Adventurer 0 Explorer 0 Win Type - Total 0 Types 0/0/0/0/0/0/0/0/0/0 Lore% 32 Gallery% 37 Achievement% 29 Wizard Run 0 Options --------- Layout 0 ASCII 1 Keyboard 1 Movement Numpad Keybinds 0 Fullscreen 1 Font 18/VGA_Max Map View 76x50 Zoom Use 0% Tactical HUD 1 Map Filters NONE Filters NONE Steam 1 RUN: 17c65e15-886c-42f8-8410-e9343b5aadbe